[Event "*** SCC Grand Prix: Titled Tuesday Blitz"]
[Site "Chess.com"]
[Date "2020.07.14"]
[Round "6"]
[White "IAgrest"]
[Black "Margarita2907"]
[Result "1-0"]
[WhiteElo "2218"]
[BlackElo "2087"]
[TimeControl "180+1"]
[EndTime "11:08:30 PDT"]
[Termination "IAgrest won by resignation"]

1. e4 {[%clk 0:03:00.9]} 1... c5 {[%clk 0:02:58.2]} 2. Nf3 {[%clk 0:03:00]} 2...
d6 {[%clk 0:02:57.9]} 3. d4 {[%clk 0:03:00.5]} 3... cxd4 {[%clk 0:02:58.4]} 4.
Nxd4 {[%clk 0:03:01.4]} 4... Nf6 {[%clk 0:02:58.7]} 5. Nc3 {[%clk 0:03:01.8]}
5... a6 {[%clk 0:02:58.9]} 6. Bg5 {[%clk 0:03:02.4]} 6... Nbd7 {[%clk
0:02:57.9]} 7. Qe2 {[%clk 0:03:01.9]} 7... e6 {[%clk 0:02:48.8]} 8. O-O-O {[%clk
0:03:01.1]} 8... Be7 {[%clk 0:02:48.4]} 9. h4 {[%clk 0:02:58.8]} 9... Qc7 {[%clk
0:02:47.7]} 10. h5 {[%clk 0:02:54.9]} 10... h6 {[%clk 0:02:45.6]} 11. Be3 {[%clk
0:02:52.4]} 11... b5 {[%clk 0:02:44.4]} 12. f3 {[%clk 0:02:50.8]} 12... Bb7
{[%clk 0:02:41.5]} 13. Qf2 {[%clk 0:02:40.7]} 13... Ne5 {[%clk 0:02:37.1]} 14.
Kb1 {[%clk 0:02:35]} 14... Nc4 {[%clk 0:02:35.8]} 15. Bxc4 {[%clk 0:02:28.3]}
15... Qxc4 {[%clk 0:02:32.2]} 16. g4 {[%clk 0:02:21.5]} 16... b4 {[%clk
0:02:19.6]} 17. Nce2 {[%clk 0:02:19.2]} 17... Rc8 {[%clk 0:02:16.9]} 18. Nc1
{[%clk 0:02:00.9]} 18... a5 {[%clk 0:02:10.1]} 19. Ndb3 {[%clk 0:01:50.5]} 19...
Qb5 {[%clk 0:01:57.4]} 20. Nd4 {[%clk 0:01:48.3]} 20... Qa6 {[%clk 0:01:48.4]}
21. Qe2 {[%clk 0:01:43.8]} 21... Qxe2 {[%clk 0:01:37.5]} 22. Ncxe2 {[%clk
0:01:42.7]} 22... d5 {[%clk 0:01:28.8]} 23. e5 {[%clk 0:01:38.7]} 23... Nd7
{[%clk 0:01:28.1]} 24. f4 {[%clk 0:01:38.4]} 24... Nc5 {[%clk 0:01:26.4]} 25. g5
{[%clk 0:01:31.3]} 25... hxg5 {[%clk 0:01:16.5]} 26. fxg5 {[%clk 0:01:32.2]}
26... Ne4 {[%clk 0:01:16.2]} 27. g6 {[%clk 0:01:23.9]} 27... fxg6 {[%clk
0:01:11.2]} 28. Nxe6 {[%clk 0:01:17.8]} 28... gxh5 {[%clk 0:01:06.4]} 29. Nxg7+
{[%clk 0:01:10.3]} 29... Kd7 {[%clk 0:01:00]} 30. e6+ {[%clk 0:01:08.9]} 30...
Kd6 {[%clk 0:00:59]} 31. Bf4+ {[%clk 0:01:05.7]} 31... Kc6 {[%clk 0:00:56.2]}
32. Nd4+ {[%clk 0:00:59.9]} 32... Kb6 {[%clk 0:00:51.7]} 33. Be3 {[%clk
0:00:56.6]} 33... Bc5 {[%clk 0:00:47.6]} 34. Rxh5 {[%clk 0:00:46]} 34... Rxh5
{[%clk 0:00:41.1]} 35. Nxh5 {[%clk 0:00:46.9]} 35... Rh8 {[%clk 0:00:27.4]} 36.
Ng7 {[%clk 0:00:46.5]} 36... Rh3 {[%clk 0:00:22.1]} 37. Bg1 {[%clk 0:00:34.9]}
37... Rg3 {[%clk 0:00:20.3]} 38. e7 {[%clk 0:00:31.5]} 38... Bxe7 {[%clk
0:00:14]} 39. Ndf5+ {[%clk 0:00:30]} 39... Rxg1 {[%clk 0:00:13.2]} 40. Rxg1
{[%clk 0:00:30.2]} 40... Bc5 {[%clk 0:00:12.3]} 41. Rg6+ {[%clk 0:00:28.8]}
41... Kb5 {[%clk 0:00:12.3]} 42. Ne6 {[%clk 0:00:26]} 42... Bb6 {[%clk
0:00:09.5]} 43. Ned4+ {[%clk 0:00:24.6]} 43... Bxd4 {[%clk 0:00:09.1]} 44. Nxd4+
{[%clk 0:00:25.5]} 44... Kc4 {[%clk 0:00:09.2]} 45. Ne6 {[%clk 0:00:21.8]} 45...
Bc8 {[%clk 0:00:08.3]} 46. b3+ {[%clk 0:00:20.4]} 46... Kb5 {[%clk 0:00:06.8]}
47. Nd4+ {[%clk 0:00:19.7]} 47... Kc5 {[%clk 0:00:06.7]} 48. Rc6+ {[%clk
0:00:19]} 48... Kxd4 {[%clk 0:00:06.5]} 49. Rxc8 {[%clk 0:00:19.4]} 49... Nc3+
{[%clk 0:00:06.6]} 50. Kb2 {[%clk 0:00:17.9]} 50... Nd1+ {[%clk 0:00:06]} 51.
Kc1 {[%clk 0:00:15.9]} 51... Nc3 {[%clk 0:00:05.9]} 52. Kb2 {[%clk 0:00:13.8]}
52... Nd1+ {[%clk 0:00:04.3]} 53. Ka1 {[%clk 0:00:11.6]} 53... Nc3 {[%clk
0:00:04.7]} 54. Ra8 {[%clk 0:00:09.2]} 54... Ke3 {[%clk 0:00:05.1]} 55. Rxa5
{[%clk 0:00:09.2]} 55... Kd2 {[%clk 0:00:05.4]} 56. Kb2 {[%clk 0:00:08.6]} 56...
d4 {[%clk 0:00:03.9]} 57. Rc5 {[%clk 0:00:07.7]} 57... d3 {[%clk 0:00:03.1]} 58.
cxd3 {[%clk 0:00:07.2]} 58... Kxd3 {[%clk 0:00:03.7]} 59. Rxc3+ {[%clk
0:00:05.7]} 59... bxc3+ {[%clk 0:00:03.1]} 60. Kc1 {[%clk 0:00:05.8]} 60... c2
{[%clk 0:00:02.7]} 61. a4 {[%clk 0:00:05.7]} 61... Kc3 {[%clk 0:00:03.2]} 62. a5
{[%clk 0:00:06.1]} 62... Kxb3 {[%clk 0:00:03.4]} 63. a6 {[%clk 0:00:06.3]} 63...
Kb4 {[%clk 0:00:03.4]} 64. a7 {[%clk 0:00:06.7]} 1-0

[Event "*** SCC Grand Prix: Titled Tuesday Blitz"]
[Site "Chess.com"]
[Date "2020.07.14"]
[Round "6"]
[White "keshka01"]
[Black "MateSchmate"]
[Result "1-0"]
[WhiteElo "2567"]
[BlackElo "2411"]
[TimeControl "180+1"]
[EndTime "11:08:33 PDT"]
[Termination "keshka01 won by checkmate"]

1. e4 {[%clk 0:03:00.9]} 1... e6 {[%clk 0:02:20.4]} 2. d3 {[%clk 0:02:58]} 2...
d5 {[%clk 0:02:20.3]} 3. Nd2 {[%clk 0:02:58.9]} 3... Nf6 {[%clk 0:02:19.1]} 4.
Ngf3 {[%clk 0:02:59.5]} 4... Bc5 {[%clk 0:02:18.4]} 5. e5 {[%clk 0:02:53.9]}
5... Nfd7 {[%clk 0:02:17.7]} 6. g3 {[%clk 0:02:42.6]} 6... Be7 {[%clk
0:02:09.2]} 7. Bg2 {[%clk 0:02:40]} 7... c5 {[%clk 0:02:10.1]} 8. O-O {[%clk
0:02:39.7]} 8... Nc6 {[%clk 0:02:10]} 9. Re1 {[%clk 0:02:37.5]} 9... Qc7 {[%clk
0:02:09.5]} 10. Qe2 {[%clk 0:02:34]} 10... b5 {[%clk 0:01:51.4]} 11. h4 {[%clk
0:02:33.6]} 11... Bb7 {[%clk 0:01:42]} 12. h5 {[%clk 0:02:32.5]} 12... h6 {[%clk
0:01:40.4]} 13. Nf1 {[%clk 0:02:24.5]} 13... a5 {[%clk 0:01:36]} 14. N1h2 {[%clk
0:02:22.6]} 14... a4 {[%clk 0:01:35.2]} 15. a3 {[%clk 0:02:20.9]} 15... b4
{[%clk 0:01:34.8]} 16. Ng4 {[%clk 0:02:16]} 16... bxa3 {[%clk 0:01:23.4]} 17.
bxa3 {[%clk 0:02:10.2]} 17... Ba6 {[%clk 0:01:14.5]} 18. Bf4 {[%clk 0:01:41.5]}
18... Nb6 {[%clk 0:01:04.1]} 19. Reb1 {[%clk 0:01:35.4]} 19... d4 {[%clk
0:01:04]} 20. Nd2 {[%clk 0:01:30.1]} 20... Rb8 {[%clk 0:00:59.2]} 21. Ne4 {[%clk
0:01:12]} 21... Nc8 {[%clk 0:00:39.3]} 22. Qd2 {[%clk 0:00:50.1]} 22... Rxb1+
{[%clk 0:00:28.5]} 23. Rxb1 {[%clk 0:00:51]} 23... Qa5 {[%clk 0:00:26.6]} 24.
Qc1 {[%clk 0:00:46.6]} 24... Qc7 {[%clk 0:00:26.4]} 25. Rb2 {[%clk 0:00:36.2]}
25... Kd7 {[%clk 0:00:26.3]} 26. Rb1 {[%clk 0:00:34.5]} 26... Nb6 {[%clk
0:00:25.2]} 27. Nd6 {[%clk 0:00:33.5]} 27... Rf8 {[%clk 0:00:15.1]} 28. Qb2
{[%clk 0:00:26.6]} 28... Nc8 {[%clk 0:00:14.9]} 29. Ne4 {[%clk 0:00:22]} 29...
N8a7 {[%clk 0:00:15.2]} 30. Nd6 {[%clk 0:00:20.7]} 30... Nc8 {[%clk 0:00:14.9]}
31. Nc4 {[%clk 0:00:20.3]} 31... Bxc4 {[%clk 0:00:13.9]} 32. dxc4 {[%clk
0:00:21.2]} 32... N8a7 {[%clk 0:00:14.4]} 33. Qb7 {[%clk 0:00:20.4]} 33... Rb8
{[%clk 0:00:12.8]} 34. Qxc7+ {[%clk 0:00:19.9]} 34... Kxc7 {[%clk 0:00:13.7]}
35. Rxb8 {[%clk 0:00:20.4]} 35... Nxb8 {[%clk 0:00:13.7]} 36. Bxh6 {[%clk
0:00:20.6]} 36... gxh6 {[%clk 0:00:13.4]} 37. Nxh6 {[%clk 0:00:21.5]} 37... f6
{[%clk 0:00:13.6]} 38. Ng8 {[%clk 0:00:21.2]} 38... Bf8 {[%clk 0:00:13.1]} 39.
exf6 {[%clk 0:00:19.9]} 39... Nd7 {[%clk 0:00:12.8]} 40. f7 {[%clk 0:00:17.6]}
40... Ne5 {[%clk 0:00:11.9]} 41. h6 {[%clk 0:00:15.2]} 41... Nxf7 {[%clk
0:00:11.7]} 42. h7 {[%clk 0:00:15.7]} 42... Bg7 {[%clk 0:00:12.1]} 43. g4 {[%clk
0:00:14]} 43... Nc6 {[%clk 0:00:10.5]} 44. Bxc6 {[%clk 0:00:12.1]} 44... Kxc6
{[%clk 0:00:11.4]} 45. f4 {[%clk 0:00:12.7]} 45... Kd7 {[%clk 0:00:10.3]} 46.
Kf2 {[%clk 0:00:12.6]} 46... Ke8 {[%clk 0:00:10.3]} 47. Kf3 {[%clk 0:00:12.1]}
47... Kf8 {[%clk 0:00:10.6]} 48. g5 {[%clk 0:00:11.6]} 48... Nh8 {[%clk
0:00:09.9]} 49. Kg4 {[%clk 0:00:08.2]} 49... Kf7 {[%clk 0:00:09.1]} 50. f5
{[%clk 0:00:07.9]} 50... exf5+ {[%clk 0:00:10]} 51. Kxf5 {[%clk 0:00:08.8]}
51... Ng6 {[%clk 0:00:10.1]} 52. Nf6 {[%clk 0:00:08.4]} 52... Nf8 {[%clk
0:00:08.2]} 53. Ne4 {[%clk 0:00:08]} 53... Bh8 {[%clk 0:00:06.6]} 54. Nxc5
{[%clk 0:00:07.9]} 54... Ke7 {[%clk 0:00:04.9]} 55. g6 {[%clk 0:00:07]} 55...
Kd6 {[%clk 0:00:04.5]} 56. Ne4+ {[%clk 0:00:07.2]} 56... Ke7 {[%clk 0:00:05.1]}
57. Ng5 {[%clk 0:00:07.4]} 57... Ne6 {[%clk 0:00:05.3]} 58. Nxe6 {[%clk
0:00:07.3]} 58... Bf6 {[%clk 0:00:02.3]} 59. Ng5 {[%clk 0:00:07.6]} 59... Bh8
{[%clk 0:00:02.2]} 60. Nf7 {[%clk 0:00:07.7]} 60... Bg7 {[%clk 0:00:03.1]} 61.
h8=Q {[%clk 0:00:08]} 61... d3 {[%clk 0:00:04]} 62. cxd3 {[%clk 0:00:07.8]}
62... Bf8 {[%clk 0:00:02.8]} 63. Qf6+ {[%clk 0:00:07.1]} 63... Kd7 {[%clk
0:00:02.6]} 64. Qd8+ {[%clk 0:00:08]} 64... Kc6 {[%clk 0:00:02.6]} 65. Qd5+
{[%clk 0:00:08.2]} 65... Kc7 {[%clk 0:00:02.3]} 66. c5 {[%clk 0:00:07.8]} 66...
Kb8 {[%clk 0:00:03.2]} 67. Qd8+ {[%clk 0:00:07.7]} 67... Ka7 {[%clk 0:00:04.1]}
68. Qb6+ {[%clk 0:00:07.3]} 68... Ka8 {[%clk 0:00:04.2]} 69. c6 {[%clk
0:00:08.2]} 69... Bd6 {[%clk 0:00:05]} 70. Qb7# {[%clk 0:00:09.1]} 1-0

[Event "*** SCC Grand Prix: Titled Tuesday Blitz"]
[Site "Chess.com"]
[Date "2020.07.14"]
[Round "6"]
[White "Olga_Zhuravleva"]
[Black "AttilaTurzo"]
[Result "0-1"]
[WhiteElo "2313"]
[BlackElo "2491"]
[TimeControl "180+1"]
[EndTime "11:08:36 PDT"]
[Termination "AttilaTurzo won by resignation"]

1. e4 {[%clk 0:03:00.9]} 1... c5 {[%clk 0:02:59.9]} 2. Nf3 {[%clk 0:03:00.3]}
2... d6 {[%clk 0:03:00.5]} 3. d4 {[%clk 0:02:59.9]} 3... cxd4 {[%clk 0:03:01.4]}
4. Nxd4 {[%clk 0:03:00.1]} 4... Nf6 {[%clk 0:03:02.2]} 5. Nc3 {[%clk 0:03:00.1]}
5... a6 {[%clk 0:03:02.9]} 6. Bd3 {[%clk 0:02:59.8]} 6... e5 {[%clk 0:03:00.8]}
7. Nb3 {[%clk 0:02:59.1]} 7... Be7 {[%clk 0:03:00.6]} 8. O-O {[%clk 0:02:58.4]}
8... Be6 {[%clk 0:03:00]} 9. f4 {[%clk 0:02:58.4]} 9... Qc7 {[%clk 0:02:52.7]}
10. Kh1 {[%clk 0:02:55.5]} 10... Nbd7 {[%clk 0:02:50.2]} 11. Qf3 {[%clk
0:02:54.4]} 11... O-O {[%clk 0:02:43]} 12. Be3 {[%clk 0:02:42.5]} 12... exf4
{[%clk 0:02:42.3]} 13. Bxf4 {[%clk 0:02:41.8]} 13... Ne5 {[%clk 0:02:42.1]} 14.
Qf2 {[%clk 0:02:37.8]} 14... Rac8 {[%clk 0:02:33.3]} 15. Nd4 {[%clk 0:02:36.1]}
15... b5 {[%clk 0:02:23]} 16. a3 {[%clk 0:02:34.8]} 16... Nc4 {[%clk 0:02:16.3]}
17. Bxc4 {[%clk 0:02:16.6]} 17... Qxc4 {[%clk 0:02:09.1]} 18. Rad1 {[%clk
0:02:12.2]} 18... b4 {[%clk 0:01:58]} 19. axb4 {[%clk 0:02:08.2]} 19... Qxb4
{[%clk 0:01:58.9]} 20. Bc1 {[%clk 0:02:07.1]} 20... Bc4 {[%clk 0:01:50.2]} 21.
Rfe1 {[%clk 0:02:03.4]} 21... Rfe8 {[%clk 0:01:40.5]} 22. Nf5 {[%clk 0:02:01.6]}
22... Bf8 {[%clk 0:01:33.3]} 23. Qg3 {[%clk 0:01:59.7]} 23... Kh8 {[%clk
0:01:18.5]} 24. Rxd6 {[%clk 0:01:40.3]} 24... Nh5 {[%clk 0:01:13.2]} 25. Qg5
{[%clk 0:01:26.3]} 25... Bxd6 {[%clk 0:01:11.6]} 26. Nxd6 {[%clk 0:01:21.9]}
26... Qxd6 {[%clk 0:01:10]} 27. Qxh5 {[%clk 0:01:22.2]} 27... Qg6 {[%clk
0:01:05.8]} 28. Qf3 {[%clk 0:01:19.9]} 28... h6 {[%clk 0:00:57.6]} 29. h3 {[%clk
0:01:20]} 29... a5 {[%clk 0:00:57]} 30. b3 {[%clk 0:01:17.3]} 30... Be6 {[%clk
0:00:52.4]} 31. Bb2 {[%clk 0:01:17.5]} 31... f6 {[%clk 0:00:51.4]} 32. Nb5
{[%clk 0:01:13.3]} 32... Rxc2 {[%clk 0:00:47.5]} 33. Bc3 {[%clk 0:01:03.9]}
33... Bxb3 {[%clk 0:00:46]} 34. Nd4 {[%clk 0:01:00]} 34... a4 {[%clk 0:00:30]}
35. Nxc2 {[%clk 0:00:57.3]} 35... Bxc2 {[%clk 0:00:30.9]} 36. Bb2 {[%clk
0:00:48.5]} 36... Rxe4 {[%clk 0:00:26.6]} 37. Rxe4 {[%clk 0:00:47.2]} 37... Qxe4
{[%clk 0:00:27.1]} 38. Qc3 {[%clk 0:00:36.2]} 38... Bb3 {[%clk 0:00:22.6]} 39.
Kh2 {[%clk 0:00:33.6]} 39... Kh7 {[%clk 0:00:22.2]} 40. Kg1 {[%clk 0:00:29.7]}
40... Qc2 {[%clk 0:00:20.3]} 41. Qd4 {[%clk 0:00:28.1]} 41... Qd1+ {[%clk
0:00:19.8]} 42. Qxd1 {[%clk 0:00:27.2]} 42... Bxd1 {[%clk 0:00:20.7]} 43. Kf2
{[%clk 0:00:27.6]} 43... Kg6 {[%clk 0:00:20.5]} 44. Ke1 {[%clk 0:00:27.3]} 44...
Bb3 {[%clk 0:00:20]} 45. Kf2 {[%clk 0:00:27.9]} 45... Kf5 {[%clk 0:00:19.5]} 46.
g3 {[%clk 0:00:28.4]} 46... g5 {[%clk 0:00:19.7]} 47. Kf3 {[%clk 0:00:27]} 47...
Bd5+ {[%clk 0:00:19.2]} 48. Ke3 {[%clk 0:00:26.9]} 48... Bg2 {[%clk 0:00:19.1]}
49. h4 {[%clk 0:00:25.3]} 49... gxh4 {[%clk 0:00:18.3]} 50. gxh4 {[%clk
0:00:25.6]} 50... Ke6 {[%clk 0:00:17.5]} 51. Kf4 {[%clk 0:00:24.7]} 51... h5
{[%clk 0:00:17.3]} 52. Kg3 {[%clk 0:00:24.4]} 52... Bf1 {[%clk 0:00:17.1]} 53.
Kf4 {[%clk 0:00:24.4]} 53... Bc4 {[%clk 0:00:18]} 54. Ba3 {[%clk 0:00:19.9]}
54... Bb3 {[%clk 0:00:17.6]} 55. Ke4 {[%clk 0:00:19]} 55... Bc2+ {[%clk
0:00:17.2]} 56. Kf4 {[%clk 0:00:19.4]} 56... Bd1 {[%clk 0:00:16.8]} 57. Bb2
{[%clk 0:00:19.7]} 57... f5 {[%clk 0:00:15.5]} 58. Ba3 {[%clk 0:00:19.6]} 58...
Bg4 {[%clk 0:00:14.7]} 59. Bb2 {[%clk 0:00:19.9]} 59... Kd5 {[%clk 0:00:15.1]}
60. Ke3 {[%clk 0:00:19.6]} 60... Kc4 {[%clk 0:00:15.5]} 61. Kd2 {[%clk
0:00:19.4]} 61... Kb3 {[%clk 0:00:15.7]} 62. Kc1 {[%clk 0:00:19.7]} 62... a3
{[%clk 0:00:15.8]} 63. Be5 {[%clk 0:00:19.9]} 63... a2 {[%clk 0:00:14.7]} 64.
Kd2 {[%clk 0:00:18.6]} 64... f4 {[%clk 0:00:14.4]} 65. Ke1 {[%clk 0:00:18]}
65... f3 {[%clk 0:00:14.5]} 66. Kf2 {[%clk 0:00:17.4]} 66... Kc2 {[%clk
0:00:14.7]} 67. Ba1 {[%clk 0:00:16.9]} 67... Kb1 {[%clk 0:00:14.8]} 68. Be5
{[%clk 0:00:17.8]} 68... a1=N {[%clk 0:00:14.1]} 69. Bxa1 {[%clk 0:00:18.5]}
69... Kxa1 {[%clk 0:00:14.4]} 70. Kg3 {[%clk 0:00:18.8]} 70... Kb2 {[%clk
0:00:14.8]} 71. Kh2 {[%clk 0:00:19]} 71... Kc3 {[%clk 0:00:15.4]} 72. Kg1 {[%clk
0:00:19.7]} 72... Kd2 {[%clk 0:00:15.8]} 73. Kf2 {[%clk 0:00:20.4]} 73... Kd1
{[%clk 0:00:15.7]} 74. Kf1 {[%clk 0:00:20.6]} 74... Kd2 {[%clk 0:00:16.1]} 75.
Kf2 {[%clk 0:00:21.1]} 75... Kd3 {[%clk 0:00:17]} 76. Kf1 {[%clk 0:00:20.5]}
76... Ke3 {[%clk 0:00:17.3]} 77. Kg1 {[%clk 0:00:20.9]} 77... f2+ {[%clk
0:00:17.3]} 78. Kh2 {[%clk 0:00:21.6]} 78... f1=Q {[%clk 0:00:16.6]} 79. Kg3
{[%clk 0:00:21.4]} 79... Qf4+ {[%clk 0:00:16.4]} 0-1

[Event "*** SCC Grand Prix: Titled Tuesday Blitz"]
[Site "Chess.com"]
[Date "2020.07.14"]
[Round "6"]
[White "XDPS"]
[Black "Barmen_EV"]
[Result "1-0"]
[WhiteElo "2683"]
[BlackElo "2431"]
[TimeControl "180+1"]
[EndTime "11:08:38 PDT"]
[Termination "XDPS won on time"]

1. e4 {[%clk 0:03:00.9]} 1... c5 {[%clk 0:02:56.7]} 2. Nf3 {[%clk 0:02:53.8]}
2... Nc6 {[%clk 0:02:57]} 3. Bb5 {[%clk 0:02:52.4]} 3... e6 {[%clk 0:02:55.7]}
4. O-O {[%clk 0:02:47.4]} 4... Nge7 {[%clk 0:02:55.7]} 5. d4 {[%clk 0:02:41.9]}
5... cxd4 {[%clk 0:02:56.6]} 6. Nxd4 {[%clk 0:02:42.7]} 6... Ng6 {[%clk
0:02:56.4]} 7. Nxc6 {[%clk 0:02:39.2]} 7... bxc6 {[%clk 0:02:56.2]} 8. Bd3
{[%clk 0:02:39.7]} 8... Be7 {[%clk 0:02:56.4]} 9. Nc3 {[%clk 0:02:39.7]} 9... e5
{[%clk 0:02:53.5]} 10. Ne2 {[%clk 0:02:27.4]} 10... O-O {[%clk 0:02:54.4]} 11.
Ng3 {[%clk 0:02:27]} 11... d5 {[%clk 0:02:46.7]} 12. c4 {[%clk 0:02:25]} 12...
Be6 {[%clk 0:02:38.5]} 13. exd5 {[%clk 0:02:23.2]} 13... cxd5 {[%clk 0:02:39.4]}
14. cxd5 {[%clk 0:02:23.3]} 14... Bxd5 {[%clk 0:02:39.2]} 15. Nf5 {[%clk
0:02:19.7]} 15... Bc5 {[%clk 0:02:29.1]} 16. Be3 {[%clk 0:02:10.7]} 16... Bxe3
{[%clk 0:02:13.7]} 17. Nxe3 {[%clk 0:02:10.2]} 17... Be6 {[%clk 0:02:14.6]} 18.
Be4 {[%clk 0:02:06.8]} 18... Rb8 {[%clk 0:02:12.1]} 19. Qc2 {[%clk 0:02:03.2]}
19... Qb6 {[%clk 0:02:06.5]} 20. b3 {[%clk 0:02:00.3]} 20... Rbc8 {[%clk
0:02:04.7]} 21. Qb2 {[%clk 0:01:58.4]} 21... Qd4 {[%clk 0:01:30.6]} 22. Qxd4
{[%clk 0:01:54.3]} 22... exd4 {[%clk 0:01:31.5]} 23. Nf5 {[%clk 0:01:49.3]}
23... Bxf5 {[%clk 0:01:24.5]} 24. Bxf5 {[%clk 0:01:48.8]} 24... Rc3 {[%clk
0:01:25.4]} 25. Rfd1 {[%clk 0:01:42.6]} 25... Rd8 {[%clk 0:01:24.7]} 26. Rd2
{[%clk 0:01:37.1]} 26... Ne7 {[%clk 0:01:20.4]} 27. Bd3 {[%clk 0:01:33.9]} 27...
Nc6 {[%clk 0:01:17.2]} 28. Rad1 {[%clk 0:01:32.9]} 28... Nb4 {[%clk 0:01:12.2]}
29. Bc4 {[%clk 0:01:29.6]} 29... d3 {[%clk 0:01:05.5]} 30. a3 {[%clk 0:01:27.8]}
30... Nc6 {[%clk 0:00:51.7]} 31. Bxd3 {[%clk 0:01:20.7]} 31... Rxb3 {[%clk
0:00:46.8]} 32. h3 {[%clk 0:01:02.5]} 32... Kf8 {[%clk 0:00:39.4]} 33. a4 {[%clk
0:00:57.6]} 33... Ne5 {[%clk 0:00:20.2]} 34. Bf1 {[%clk 0:00:51]} 34... Rxd2
{[%clk 0:00:21.1]} 35. Rxd2 {[%clk 0:00:51.6]} 35... Rb1 {[%clk 0:00:19]} 36. f4
{[%clk 0:00:43.1]} 36... Nc4 {[%clk 0:00:15.7]} 37. Re2 {[%clk 0:00:30.8]} 37...
Ra1 {[%clk 0:00:11.8]} 38. Kf2 {[%clk 0:00:15.9]} 38... Rxa4 {[%clk 0:00:11]}
39. Rc2 {[%clk 0:00:15]} 39... Nd6 {[%clk 0:00:09.6]} 40. Rc7 {[%clk 0:00:13.9]}
40... a5 {[%clk 0:00:08.1]} 41. Ra7 {[%clk 0:00:13]} 41... Ra2+ {[%clk 0:00:07]}
42. Kg3 {[%clk 0:00:10.2]} 42... a4 {[%clk 0:00:07.9]} 43. Kh2 {[%clk 0:00:06]}
43... a3 {[%clk 0:00:07.5]} 44. Ra6 {[%clk 0:00:06.6]} 44... Ke7 {[%clk
0:00:07]} 45. f5 {[%clk 0:00:07.1]} 45... Nxf5 {[%clk 0:00:05.2]} 46. Ra7+
{[%clk 0:00:06.8]} 46... Kf6 {[%clk 0:00:03.9]} 47. Bc4 {[%clk 0:00:07.4]} 47...
Nd6 {[%clk 0:00:03.6]} 48. Bxa2 {[%clk 0:00:06.7]} 48... Ke5 {[%clk 0:00:03.3]}
49. Rxa3 {[%clk 0:00:06.2]} 49... Ne4 {[%clk 0:00:01.4]} 50. Re3 {[%clk
0:00:05.9]} 50... Kd4 {[%clk 0:00:01.3]} 51. Ra3 {[%clk 0:00:05.1]} 51... Nd6
{[%clk 0:00:02.2]} 52. Ra7 {[%clk 0:00:04.1]} 52... Ke5 {[%clk 0:00:03.1]} 53.
Bxf7 {[%clk 0:00:04]} 53... Kf6 {[%clk 0:00:04]} 54. Bd5 {[%clk 0:00:03.3]}
54... g5 {[%clk 0:00:04.9]} 55. Bf3 {[%clk 0:00:03.7]} 55... Ke5 {[%clk
0:00:05.4]} 56. Ra5+ {[%clk 0:00:04]} 56... Kf6 {[%clk 0:00:05.3]} 57. Ra6
{[%clk 0:00:04.9]} 57... Ke5 {[%clk 0:00:05.4]} 58. g4 {[%clk 0:00:05]} 58...
Nc4 {[%clk 0:00:04.6]} 59. Kg3 {[%clk 0:00:05.1]} 59... Nd2 {[%clk 0:00:05]} 60.
Ra5+ {[%clk 0:00:05.5]} 60... Kf6 {[%clk 0:00:05]} 61. Rd5 {[%clk 0:00:06]}
61... Nc4 {[%clk 0:00:02.9]} 62. Be2 {[%clk 0:00:06.2]} 62... Ne5 {[%clk
0:00:02.7]} 63. Rd6+ {[%clk 0:00:06]} 63... Ke7 {[%clk 0:00:02.8]} 64. Rd5
{[%clk 0:00:06.5]} 64... Ke6 {[%clk 0:00:02.4]} 65. Ra5 {[%clk 0:00:07.1]} 1-0